bitfinex/quotes_BTCUSD_20250320
["timestamp","ask_amount","ask_price","bid_price","bid_amount"]
[1742434603284,0.013042,86237.0,86227.0,0.185556]
[1742434603893,0.198577,86237.0,86227.0,0.185556]
[1742434604660,0.011596,86236.0,86227.0,0.185556]
[1742434604844,0.001447,86235.0,86227.0,0.185556]
[1742434605049,0.001447,86235.0,86229.0,0.185551]
[1742434605259,0.011596,86234.0,86227.0,0.185556]
[1742434605515,0.001447,86233.0,86227.0,0.185556]
[1742434605941,0.185556,86227.0,86214.0,0.185583]
[1742434606145,0.011598,86218.0,86215.0,0.13376]
[1742434606357,0.001447,86218.0,86215.0,0.13376]
[1742434606557,0.001447,86220.0,86215.0,0.13376]
[1742434607059,0.011598,86216.0,86215.0,0.13376]
[1742434607269,0.011599,86213.0,86212.0,0.00012474]
[1742434607459,0.013046,86213.0,86212.0,0.00012474]
[1742434609494,0.0788554,86213.0,86212.0,0.00012474]
[1742434609838,0.2644414,86213.0,86212.0,0.00012474]
[1742434610058,0.2629944,86213.0,86212.0,0.00112474]
[1742434610763,0.2639944,86213.0,86212.0,0.00112474]
[1742434610978,0.2639944,86213.0,86212.0,0.00012474]
[1742434611179,0.2649944,86213.0,86212.0,0.00012474]
[1742434612029,0.6735939,86213.0,86212.0,0.00012474]
[1742434612201,0.7522939,86213.0,86212.0,0.00012474]
[1742434612925,1.0522939,86213.0,86212.0,0.00012474]
[1742434615304,0.9735939,86213.0,86212.0,0.00012474]
[1742434617035,0.6735939,86213.0,86212.0,0.00012474]
[1742434617253,0.65905305,86213.0,86212.0,0.00012474]
[1742434619754,0.65905305,86213.0,86212.0,0.00029444]
[1742434619950,0.65939245,86213.0,86212.0,0.00029444]
[1742434620271,0.6081239,86213.0,86212.0,0.00029444]
[1742434624003,0.6739333,86213.0,86212.0,0.00029444]
[1742434625239,1.0529333,86213.0,86212.0,0.00029444]
[1742434625462,1.1017333,86213.0,86212.0,0.00029444]
[1742434626307,1.11057996,86213.0,86212.0,0.00029444]
[1742434627051,1.11057996,86213.0,86212.0,4.4e-07]
[1742434627494,0.197272,86175.0,86173.0,0.15041186]
[1742434627667,0.011604,86174.0,86173.0,0.15041186]
[1742434627823,0.011604,86174.0,86173.0,0.28417186]
[1742434628852,0.011604,86174.0,86173.0,0.30795039]
[1742434629560,0.011604,86174.0,86173.0,0.20423853]
[1742434630671,0.011604,86174.0,86173.0,0.16353853]
[1742434630918,0.011604,86174.0,86173.0,0.00641826]
[1742434631153,0.013051,86174.0,86173.0,0.00641826]
[1742434632603,0.013051,86174.0,86173.0,0.00658786]
[1742434633009,0.013051,86174.0,86161.0,0.0823698]
[1742434633010,0.01161,86127.0,86125.0,0.0001696]
[1742434633235,0.01161,86126.0,86125.0,8e-07]
[1742434633461,0.02615085,86126.0,86125.0,0.00012627]
[1742434634275,0.08327791,86126.0,86125.0,0.00012627]
[1742434634543,0.08472491,86126.0,86125.0,0.00012627]
[1742434635063,0.15478097,86126.0,86125.0,0.00012627]
[1742434635261,0.15478097,86126.0,86125.0,2.7e-07]
[1742434636402,0.45478097,86126.0,86125.0,2.7e-07]
[1742434636603,0.86193347,86126.0,86125.0,2.7e-07]
[1742434637058,0.86293347,86126.0,86125.0,2.7e-07]
[1742434637179,0.86193347,86126.0,86125.0,2.7e-07]
[1742434637375,0.86693347,86126.0,86125.0,2.7e-07]
[1742434637577,0.87193347,86126.0,86125.0,2.7e-07]
[1742434637805,0.86693347,86126.0,86125.0,2.7e-07]
[1742434638224,0.87193347,86126.0,86125.0,2.7e-07]
[1742434638432,0.87193347,86126.0,86112.0,2.7e-07]
[1742434638433,0.197414,86113.0,86112.0,2.7e-07]
[1742434638636,0.44127106,86113.0,86112.0,9.213e-05]
[1742434638834,0.47421616,86113.0,86112.0,9.213e-05]
[1742434639031,0.76816591,86113.0,86112.0,9.213e-05]
[1742434639234,0.76816591,86113.0,86107.0,0.0001697]
[1742434639235,0.197426,86108.0,86107.0,8.3e-07]
[1742434639431,0.27175449,86108.0,86107.0,0.00012569]
[1742434639632,0.27030749,86108.0,86107.0,0.00012569]
[1742434641111,0.27330749,86108.0,86107.0,0.00012569]
[1742434642477,0.27630749,86108.0,86107.0,0.00012569]
[1742434645167,0.68490699,86108.0,86107.0,0.00012569]
[1742434645993,0.68490699,86108.0,86101.0,6.9e-07]
[1742434645994,0.19744,86102.0,86101.0,6.9e-07]
[1742434646198,0.27209609,86102.0,86101.0,6.9e-07]
[1742434646399,0.27064909,86102.0,86101.0,6.9e-07]
[1742434646628,0.30631305,86102.0,86101.0,6.9e-07]
[1742434646812,0.34070515,86102.0,86101.0,6.9e-07]
[1742434647041,0.97924859,86102.0,86101.0,6.9e-07]
[1742434647242,0.98024859,86102.0,86101.0,6.9e-07]
[1742434647447,1.01591255,86102.0,86101.0,6.9e-07]
[1742434647663,1.07530465,86102.0,86101.0,6.9e-07]
[1742434647811,1.07730465,86102.0,86101.0,6.9e-07]
[1742434648033,1.05130465,86102.0,86101.0,6.9e-07]
[1742434649443,0.96670774,86102.0,86101.0,6.9e-07]
[1742434649666,0.66470774,86102.0,86101.0,6.9e-07]
[1742434650044,0.66770774,86102.0,86101.0,6.9e-07]
[1742434650257,0.67170774,86102.0,86101.0,6.9e-07]
[1742434650881,0.66470774,86102.0,86101.0,6.9e-07]
[1742434651122,0.66670774,86102.0,86101.0,6.9e-07]
[1742434651334,0.19956528,86102.0,86101.0,6.9e-07]
[1742434651478,0.20101228,86102.0,86101.0,6.9e-07]
[1742434652349,0.27429842,86102.0,86101.0,6.9e-07]
[1742434652521,0.27285142,86102.0,86101.0,6.9e-07]
[1742434653041,0.25731057,86102.0,86101.0,6.9e-07]
[1742434653816,0.25631057,86102.0,86101.0,6.9e-07]
[1742434653981,0.25931057,86102.0,86101.0,6.9e-07]
[1742434654375,0.19756528,86102.0,86101.0,6.9e-07]
[1742434654582,0.20056528,86102.0,86101.0,6.9e-07]
[1742434654857,0.20356528,86102.0,86101.0,6.9e-07]
[1742434655064,0.20056528,86102.0,86101.0,6.9e-07]
[1742434656044,0.00312528,86102.0,86101.0,6.9e-07]
[1742434656250,0.00012528,86102.0,86101.0,6.9e-07]
[1742434656632,0.00212528,86102.0,86101.0,6.9e-07]
[1742434656825,0.00112528,86102.0,86101.0,0.01161469]
[1742434657032,0.00012528,86102.0,86101.0,0.01178449]
[1742434657449,0.00012528,86102.0,86101.0,0.00017049]
[1742434657904,0.00046488,86102.0,86101.0,0.00017049]
[1742434658248,0.00046488,86102.0,86101.0,0.01178449]
[1742434659980,0.00046488,86102.0,86101.0,0.01278449]
[1742434663007,0.00046488,86102.0,86101.0,0.51232076]
[1742434663247,0.00046488,86102.0,86101.0,0.51115952]
[1742434663684,0.00046488,86102.0,86101.0,0.55665952]
[1742434664086,0.197347,86142.0,86125.0,0.197387]
[1742434664287,0.011609,86136.0,86125.0,0.455807]
[1742434664664,0.011608,86142.0,86125.0,0.455807]
[1742434664872,0.011609,86137.0,86125.0,0.455807]
[1742434665277,0.185755,86135.0,86125.0,0.455807]
[1742434665516,0.197359,86137.0,86125.0,0.455807]
[1742434666322,0.001447,86139.0,86125.0,0.458807]
[1742434666547,0.185746,86140.0,86125.0,0.458807]
[1742434666711,0.185718,86152.0,86125.0,0.57838203]
[1742434666712,0.185722,86150.0,86125.0,0.57838203]
[1742434666915,0.011607,86149.0,86125.0,0.58238203]
[1742434667123,0.011608,86146.0,86125.0,0.58238203]
[1742434667318,0.011607,86148.0,86125.0,0.58238203]
[1742434667525,0.011607,86148.0,86125.0,1.16034203]
[1742434667772,0.197335,86148.0,86125.0,1.18331001]
[1742434667978,0.185731,86146.0,86125.0,1.18331001]
[1742434668168,0.197339,86147.0,86125.0,1.18331001]
[1742434668382,0.185735,86144.0,86125.0,1.18331001]
[1742434668633,0.197348,86142.0,86125.0,1.18331001]
[1742434669126,0.185771,86128.0,86125.0,0.72522798]
[1742434669440,0.0013394,86126.0,86125.0,0.78982798]
[1742434669997,0.0003394,86126.0,86125.0,0.79743898]
[1742434670361,0.0003394,86126.0,86125.0,0.79243898]
[1742434670561,0.0003394,86126.0,86125.0,0.79943898]
[1742434670900,0.0003394,86126.0,86125.0,0.79543898]
[1742434671298,0.0003394,86126.0,86125.0,0.78382798]
[1742434671503,0.0003394,86126.0,86125.0,0.79543898]
[1742434672381,0.0003394,86126.0,86125.0,0.79643898]
[1742434672687,0.0003394,86126.0,86125.0,0.79943898]
[1742434675159,0.0003394,86126.0,86125.0,0.78782798]
[1742434677199,0.0003394,86126.0,86125.0,0.79943898]
[1742434678304,0.0003394,86126.0,86125.0,0.22147898]
[1742434679075,0.0003394,86126.0,86125.0,0.21747898]
[1742434679278,0.0003394,86126.0,86125.0,0.20286798]
[1742434679450,0.0003394,86126.0,86125.0,0.20686798]
[1742434679659,0.0003394,86126.0,86125.0,0.20986798]
[1742434680127,0.0003394,86126.0,86125.0,0.02996798]
[1742434680351,0.25485046,86126.0,86125.0,0.007]
[1742434682577,0.25485046,86126.0,86125.0,0.004]
[1742434682755,0.25485046,86126.0,86117.0,0.13388]
[1742434682756,0.197402,86118.0,86117.0,0.13388]
[1742434683196,0.197402,86118.0,86115.0,0.02311633]
[1742434683197,0.011613,86104.0,86101.0,0.01143018]
[1742434683412,0.011613,86103.0,86101.0,0.01143018]
[1742434683620,0.011613,86103.0,86102.0,0.1340498]
[1742434684568,0.011613,86103.0,86102.0,0.15768251]
[1742434685641,0.011613,86103.0,86102.0,0.16268251]
[1742434686044,0.011613,86103.0,86102.0,0.16168251]
[1742434686245,0.012613,86103.0,86102.0,0.03080251]
[1742434686654,0.011613,86103.0,86102.0,0.02680251]
[1742434687018,0.011613,86103.0,86102.0,0.03080251]
[1742434691792,0.011613,86103.0,86102.0,0.16472251]
[1742434697585,0.185811,86109.0,86102.0,0.16472251]
[1742434697586,0.0003394,86126.0,86117.0,0.011612]
[1742434697793,0.011611,86124.0,86117.0,0.145532]
[1742434698231,0.197388,86125.0,86117.0,0.331324]
[1742434698435,0.197388,86125.0,86118.0,0.185791]
[1742434698640,0.0003394,86126.0,86124.0,0.185776]
[1742434698822,0.0119494,86126.0,86117.0,0.145532]
[1742434699073,0.0003394,86126.0,86125.0,0.185776]
[1742434700407,0.0003394,86126.0,86125.0,0.20942559]
[1742434700634,0.185726,86149.0,86125.0,0.20942559]
[1742434700635,0.0085832,86145.0,86143.0,0.197345]
[1742434700846,0.0085832,86145.0,86144.0,0.145528]
[1742434701093,0.011606,86158.0,86149.0,0.185724]
[1742434701356,0.4085995,86167.0,86157.0,0.011606]
[1742434701556,0.011606,86162.0,86156.0,0.20943536]
[1742434701768,0.197304,86161.0,86156.0,0.02372636]
[1742434702188,0.011606,86159.0,86156.0,0.02372636]
[1742434702909,0.19731,86159.0,86156.0,0.02372636]
[1742434703493,0.001,86158.0,86156.0,0.02372636]
[1742434703953,0.002,86158.0,86156.0,0.02372636]
[1742434704247,0.011606,86158.0,86156.0,0.02372636]
[1742434704422,0.011606,86157.0,86156.0,0.02472636]
[1742434704601,0.011606,86158.0,86156.0,0.02472636]
[1742434705210,0.2537645,86157.0,86156.0,0.001]
[1742434705437,0.2523175,86157.0,86156.0,0.001]
[1742434706324,0.197341,86145.0,86144.0,0.13388]
[1742434707998,0.197341,86145.0,86144.0,0.13488]
[1742434708205,0.197341,86145.0,86144.0,0.001]
[1742434709360,0.25318761,86145.0,86144.0,0.001]
[1742434709568,0.25318761,86145.0,86144.0,0.003]
[1742434711387,0.26772846,86145.0,86144.0,0.003]
[1742434711594,0.26772846,86145.0,86144.0,0.001]
[1742434711995,0.197366,86134.0,86133.0,0.13388]
[1742434712411,0.198813,86134.0,86133.0,0.13388]
[1742434713270,0.197373,86131.0,86130.0,0.02301197]
[1742434713471,0.197373,86131.0,86130.0,0.15689197]
[1742434714621,0.199373,86131.0,86130.0,0.15689197]
[1742434723292,0.199373,86131.0,86130.0,0.02301197]
[1742434727151,0.01161,86130.0,86129.0,0.13388]
[1742434727369,0.013057,86130.0,86129.0,0.13388]
[1742434728815,0.01161,86127.0,86126.0,0.0001697]
[1742434729087,0.197382,86127.0,86126.0,0.1340497]
[1742434730628,0.001447,86128.0,86126.0,0.1340497]
[1742434730793,0.01161,86127.0,86126.0,0.1340497]
[1742434730971,0.001447,86128.0,86126.0,0.1340497]
[1742434731343,0.185772,86127.0,86126.0,0.1340497]
[1742434731560,0.197382,86127.0,86126.0,0.1340497]
[1742434733747,0.197382,86127.0,86126.0,0.1350497]
[1742434739406,0.01161,86130.0,86126.0,0.1350497]
[1742434739603,0.001447,86130.0,86126.0,0.1350497]
[1742434739739,0.001447,86130.0,86127.0,0.185772]
[1742434740556,0.187214,86130.0,86126.0,0.1340497]
[1742434741016,0.18577,86128.0,86126.0,0.1340497]
[1742434741254,0.013057,86127.0,86126.0,0.1340497]
[1742434741755,0.07011666,86127.0,86126.0,0.1340497]
[1742434741961,0.07011666,86127.0,86126.0,0.0001697]
[1742434742974,0.49325701,86127.0,86126.0,0.0001697]
[1742434743192,0.49181001,86127.0,86126.0,0.0001697]
[1742434743604,0.49181001,86127.0,86126.0,0.0011697]
[1742434744120,0.49181001,86127.0,86126.0,0.0001697]
[1742434744349,0.49281001,86127.0,86126.0,0.0001697]
[1742434745092,0.79481001,86127.0,86126.0,0.0001697]
[1742434750321,0.80519999,86127.0,86126.0,0.0001697]
[1742434752580,0.80519999,86127.0,86106.0,0.0228685]
[1742434752581,0.011613,86108.0,86106.0,0.0228685]
[1742434752781,0.011613,86108.0,86102.0,0.0001698]
[1742434752782,0.197436,86103.0,86102.0,0.0001698]
[1742434752982,0.198883,86103.0,86102.0,0.0001698]
[1742434753969,0.198883,86103.0,86102.0,0.00058603]
[1742434754510,0.6807012,86103.0,86102.0,0.00058603]
[1742434754717,0.6792542,86103.0,86102.0,0.00058603]
[1742434755337,0.02615485,86102.0,86101.0,5.2e-07]
[1742434755565,0.46181341,86102.0,86101.0,5.2e-07]
[1742434755698,0.46036641,86102.0,86101.0,5.2e-07]
[1742434755910,0.86896591,86102.0,86101.0,5.2e-07]
[1742434756926,0.86996591,86102.0,86101.0,5.2e-07]
[1742434757499,0.86896591,86102.0,86101.0,5.2e-07]
[1742434757830,0.87396591,86102.0,86101.0,5.2e-07]
[1742434758224,0.80752653,86102.0,86101.0,5.2e-07]
[1742434758419,0.78592506,86102.0,86101.0,5.2e-07]
[1742434758642,0.78392506,86102.0,86101.0,5.2e-07]
[1742434758882,0.48892506,86102.0,86101.0,0.00100052]
[1742434759785,0.48392506,86102.0,86101.0,5.2e-07]
[1742434759993,0.011614,86102.0,86101.0,5.2e-07]
[1742434760199,0.011614,86102.0,86101.0,0.13388052]
[1742434760394,0.20244,86102.0,86101.0,0.13488052]
[1742434760869,0.19744,86102.0,86101.0,0.13388052]
[1742434761154,0.20244,86102.0,86101.0,0.13388052]
[1742434761327,0.19844,86102.0,86101.0,0.13388052]
[1742434763253,0.001,86102.0,86101.0,0.20918052]
[1742434763704,0.001,86102.0,86101.0,0.22079452]
[1742434764083,0.00041821,86103.0,86101.0,0.22079452]
[1742434764084,0.00041821,86103.0,86102.0,0.185826]
[1742434765260,0.011614,86102.0,86101.0,0.21318052]
[1742434765407,0.013061,86102.0,86101.0,0.13588052]
[1742434765830,0.0003396,86102.0,86101.0,0.13588052]
[1742434766484,0.1977796,86102.0,86101.0,0.13588052]
[1742434766696,0.1977796,86102.0,86101.0,5.2e-07]
[1742434768111,0.1977796,86102.0,86101.0,0.00200052]
[1742434768545,0.1977796,86102.0,86101.0,5.2e-07]
[1742434768696,0.1987796,86102.0,86101.0,5.2e-07]
[1742434769216,0.1997796,86102.0,86101.0,5.2e-07]
[1742434770847,0.1987796,86102.0,86101.0,5.2e-07]
[1742434772124,0.25752489,86102.0,86101.0,5.2e-07]
[1742434772941,0.0013396,86102.0,86101.0,0.01161452]
[1742434773209,0.0013396,86102.0,86101.0,0.27324252]
[1742434773429,0.0013396,86102.0,86101.0,0.32224252]
[1742434774184,0.0003396,86102.0,86101.0,0.44181755]
[1742434774586,0.0003396,86102.0,86101.0,0.44281755]
[1742434774988,0.0013396,86102.0,86101.0,0.44681755]
[1742434775379,0.0013396,86102.0,86101.0,0.45081755]
[1742434775575,0.0013396,86102.0,86101.0,0.12980052]
[1742434775832,0.0013396,86102.0,86101.0,0.26368052]
[1742434776047,0.0013396,86102.0,86101.0,0.26768052]
[1742434776259,0.0013396,86102.0,86101.0,0.45350852]
[1742434776626,0.0003396,86102.0,86101.0,0.44850852]
[1742434777075,0.0003396,86102.0,86101.0,0.45350852]
[1742434777581,0.0003396,86102.0,86101.0,0.44850852]
[1742434777796,0.0003396,86102.0,86101.0,0.45150852]
[1742434777986,0.0003396,86102.0,86101.0,0.44750852]
[1742434778321,0.0003396,86102.0,86101.0,0.45150852]
[1742434778527,0.0003396,86102.0,86101.0,0.45912252]
[1742434778938,0.0003396,86102.0,86101.0,0.46112252]
[1742434780627,0.0003396,86102.0,86101.0,0.44950852]
[1742434780822,0.0003396,86102.0,86101.0,0.26368052]
[1742434781046,0.0003396,86102.0,86101.0,0.18788052]
[1742434783704,0.0003396,86102.0,86101.0,0.05400052]
[1742434783949,0.0003396,86102.0,86101.0,0.18788052]
[1742434785850,0.0003396,86102.0,86101.0,0.37370852]
[1742434786315,0.0003396,86102.0,86101.0,0.18788052]
[1742434787959,0.0119536,86102.0,86101.0,0.18788052]
[1742434789380,0.0119536,86102.0,86101.0,0.13888052]
[1742434790198,0.0119536,86102.0,86101.0,0.00500052]
[1742434790449,0.0003396,86102.0,86101.0,0.13884052]
[1742434790881,0.011612,86113.0,86106.0,0.185817]
[1742434791121,0.185808,86111.0,86106.0,0.185817]
[1742434791647,0.197423,86110.0,86106.0,0.185817]
[1742434791878,0.197423,86110.0,86104.0,0.185821]
[1742434793071,0.011612,86113.0,86102.0,0.011614]
[1742434793072,0.185804,86112.0,86102.0,0.011614]
[1742434793248,4.181e-05,86114.0,86109.0,0.185808]
[1742434793449,4.181e-05,86114.0,86110.0,0.0787]
[1742434794029,0.197418,86112.0,86110.0,0.0787]
[1742434794909,0.011612,86112.0,86110.0,0.0787]
[1742434795120,0.011612,86112.0,86111.0,0.13384]
[1742434795481,0.197414,86113.0,86111.0,0.13384]
[1742434795677,4.181e-05,86114.0,86111.0,0.13384]
[1742434795951,4.181e-05,86114.0,86111.0,0.319646]
[1742434796739,4.181e-05,86114.0,86111.0,0.13384]
[1742434798416,4.181e-05,86114.0,86111.0,0.20337375]
[1742434798622,0.197414,86113.0,86111.0,0.20537375]
[1742434798819,0.011612,86112.0,86111.0,0.003]
[1742434799022,0.011612,86112.0,86111.0,0.13684]
[1742434799223,0.013059,86112.0,86111.0,0.003]
[1742434799562,0.013059,86112.0,86111.0,0.001]
[1742434799745,0.197434,86104.0,86103.0,0.13384]
[1742434800798,0.19744,86102.0,86099.0,0.02327874]
[1742434800956,0.198887,86102.0,86099.0,0.02327874]
[1742434801509,0.19744,86102.0,86099.0,0.02327874]
[1742434802042,0.197434,86104.0,86101.0,0.00400052]
[1742434802043,0.011613,86104.0,86101.0,0.00400052]
[1742434802248,0.185803,86113.0,86104.0,0.011613]
[1742434802462,0.19742,86111.0,86105.0,0.185817]
[1742434802668,0.197423,86110.0,86103.0,0.185823]
[1742434803051,0.185815,86107.0,86101.0,0.18882752]
[1742434803255,0.197428,86107.0,86101.0,0.18582752]
[1742434803383,0.197428,86107.0,86101.0,5.2e-07]
[1742434803384,0.011613,86106.0,86101.0,5.2e-07]
[1742434803581,0.011613,86106.0,86104.0,0.001]
[1742434804631,0.185806,86112.0,86107.0,0.185815]
[1742434804834,0.197414,86113.0,86107.0,0.185815]
[1742434805088,0.19742,86111.0,86105.0,0.185819]
[1742434805270,0.197414,86113.0,86106.0,0.185815]
[1742434805597,0.185807,86111.0,86106.0,0.185815]
[1742434805818,0.197427,86108.0,86104.0,0.003]
[1742434806068,0.197427,86108.0,86107.0,0.001]
[1742434806463,0.011613,86108.0,86107.0,0.001]
[1742434806635,0.185812,86109.0,86107.0,0.001]
[1742434806850,0.01199301,86114.0,86109.0,0.185811]
[1742434806851,0.00038101,86114.0,86109.0,0.185811]
[1742434807122,0.00038101,86114.0,86113.0,0.197414]
[1742434808176,0.00038101,86114.0,86111.0,0.185806]
[1742434808380,0.00038101,86114.0,86110.0,0.13384]
[1742434808381,0.00038101,86114.0,86110.0,0.319647]
[1742434808814,0.18618101,86114.0,86113.0,0.002]
[1742434809397,0.18618101,86114.0,86110.0,0.13384]
[1742434809605,0.18618101,86114.0,86113.0,0.001]
[1742434809863,0.18618101,86114.0,86110.0,0.13384]
[1742434810074,0.185803,86113.0,86110.0,0.13384]
[1742434810306,0.185806,86112.0,86110.0,0.13384]
[1742434810998,0.185806,86112.0,86110.0,0.13584]
[1742434811369,0.011612,86112.0,86111.0,0.13384]
[1742434811930,0.185806,86111.0,86110.0,0.003]
[1742434812148,0.185806,86111.0,86110.0,0.13584]
[1742434812149,0.197418,86111.0,86110.0,0.13584]
[1742434812812,0.197415,86113.0,86110.0,0.13384]
[1742434813013,0.01199301,86114.0,86110.0,0.13384]
[1742434813014,0.00038101,86114.0,86112.0,0.185804]
[1742434813171,0.00038101,86114.0,86112.0,0.267604]
[1742434814393,0.00038101,86114.0,86112.0,0.279216]
[1742434814590,0.00038101,86114.0,86113.0,0.26502703]
[1742434815823,0.00038101,86114.0,86113.0,1.27422703]
[1742434816028,0.00038101,86114.0,86113.0,1.3105071]
[1742434816346,0.00038101,86114.0,86113.0,1.27722703]
[1742434816561,0.00038101,86114.0,86113.0,1.29493192]
[1742434818105,0.00038101,86114.0,86113.0,1.29193192]
[1742434818308,0.00038101,86114.0,86113.0,1.30293192]
[1742434818727,0.00038101,86114.0,86113.0,1.29493192]
[1742434818882,0.00038101,86114.0,86113.0,1.30493192]
[1742434819291,0.00038101,86114.0,86113.0,1.29693192]
[1742434819516,0.00038101,86114.0,86113.0,1.30193192]
[1742434819701,0.00138101,86114.0,86113.0,1.30693192]
[1742434819893,0.00138101,86114.0,86113.0,1.30193192]
[1742434820092,0.00038101,86114.0,86113.0,1.31147277]
[1742434820345,0.0003394,86145.0,86141.0,0.197349]
[1742434820501,0.00046083,86145.0,86144.0,0.197343]
[1742434820704,0.00046083,86145.0,86144.0,0.19850371]
[1742434821286,0.00046083,86145.0,86144.0,0.197343]
[1742434821689,0.00046083,86145.0,86144.0,0.31691803]
[1742434822133,0.00046083,86145.0,86144.0,0.32091803]
[1742434822550,0.00046083,86145.0,86144.0,0.34372842]
[1742434823215,0.00046083,86145.0,86144.0,0.34872842]
[1742434823826,0.00046083,86145.0,86144.0,0.64872842]
[1742434824518,0.00046083,86145.0,86144.0,0.64472842]
[1742434824966,0.00046083,86145.0,86144.0,0.72722842]
[1742434825180,0.00046083,86145.0,86144.0,0.78686927]
[1742434825621,0.00146083,86145.0,86144.0,1.20676927]
[1742434826220,0.00046083,86145.0,86144.0,1.19576927]
[1742434826439,0.00146083,86145.0,86144.0,1.20676927]
[1742434826882,0.00046083,86145.0,86144.0,1.20176927]
[1742434828021,0.011603,86183.0,86169.0,0.011605]
[1742434828258,0.01166128,86183.0,86174.0,0.18567]
[1742434828628,0.197262,86180.0,86174.0,0.18567]
[1742434828866,0.185672,86174.0,86166.0,0.57772]
[1742434829062,0.185672,86174.0,86167.0,0.13376]
[1742434829063,0.197276,86174.0,86167.0,0.13376]
[1742434829299,0.197276,86174.0,86169.0,0.186681]
[1742434829500,0.197276,86174.0,86169.0,0.001]
[1742434829980,0.11224838,86176.0,86173.0,0.02292854]
[1742434830214,0.185668,86175.0,86173.0,0.02292854]
[1742434830860,0.185668,86175.0,86166.0,0.767406]
[1742434830861,0.19729,86167.0,86166.0,0.004]
[1742434831106,0.19729,86167.0,86166.0,0.13772]
[1742434831341,0.19729,86167.0,86166.0,0.13972]
[1742434831582,0.198737,86167.0,86166.0,0.13572]
[1742434831843,0.198737,86167.0,86166.0,0.13372]
[1742434832588,0.19729,86167.0,86166.0,0.001]
[1742434832888,0.19729,86167.0,86166.0,0.13472]
[1742434833222,0.19729,86167.0,86166.0,0.13672]
[1742434833458,0.19729,86167.0,86166.0,0.003]
[1742434833700,0.25165467,86167.0,86166.0,0.003]
[1742434834561,0.19729,86167.0,86166.0,0.003]
[1742434834785,0.19729,86167.0,86166.0,0.001]
[1742434835012,0.185691,86165.0,86159.0,0.319421]
[1742434835233,0.197299,86163.0,86159.0,0.13372]
[1742434836412,0.011605,86166.0,86159.0,0.320422]
[1742434836623,0.185656,86181.0,86163.0,0.011605]
[1742434836855,0.187109,86178.0,86173.0,0.185672]
[1742434837052,0.19727,86177.0,86174.0,0.13372]
[1742434837679,0.4202025,86179.0,86174.0,0.13372]
[1742434837680,0.4085995,86179.0,86176.0,0.185664]
[1742434837838,0.4085995,86179.0,86177.0,0.185662]
[1742434838045,0.01094368,86183.0,86177.0,0.185662]
[1742434838254,0.01094368,86183.0,86176.0,0.185664]
[1742434838458,0.185657,86180.0,86176.0,0.185664]
[1742434838669,0.197265,86178.0,86174.0,0.13372]
[1742434838886,0.197272,86175.0,86174.0,0.13372]
[1742434839868,0.197272,86175.0,86174.0,0.13472]
[1742434841524,0.185642,86188.0,86182.0,0.185653]
[1742434841765,0.11224838,86190.0,86182.0,0.185653]
[1742434842011,0.185624,86196.0,86182.0,0.185653]
[1742434842012,5.828e-05,86183.0,86182.0,0.49841631]
[1742434842251,0.0003392,86198.0,86188.0,0.197242]
[1742434842492,0.011601,86194.0,86188.0,0.31936]
[1742434843229,0.20799648,86197.0,86176.0,0.3]
[1742434843230,0.185655,86181.0,86176.0,0.3]
[1742434843470,0.011602,86185.0,86182.0,0.003]
[1742434844129,0.011603,86184.0,86182.0,0.003]
[1742434844444,0.197252,86184.0,86182.0,0.003]
[1742434844786,0.197252,86184.0,86180.0,0.02319137]
[1742434844996,0.0119416,86189.0,86184.0,0.185647]
[1742434845333,0.0119416,86189.0,86180.0,0.22045137]
[1742434845334,0.0003396,86189.0,86188.0,0.002]
[1742434845897,0.0003396,86189.0,86187.0,0.185641]
[1742434847793,0.0003396,86189.0,86187.0,0.186641]
[1742434848200,0.0003396,86189.0,86188.0,0.002]
[1742434848558,0.0003396,86189.0,86187.0,0.186641]
[1742434849100,0.0003396,86189.0,86187.0,0.188641]
[1742434850086,0.197242,86188.0,86187.0,0.003]
[1742434850897,0.197242,86188.0,86187.0,0.13568]
[1742434851343,0.197242,86188.0,86187.0,0.13368]
[1742434851517,0.197242,86188.0,86187.0,0.13568]
[1742434852316,0.197242,86188.0,86187.0,0.13668]
[1742434852949,0.197242,86188.0,86187.0,0.003]
[1742434853184,0.25163982,86188.0,86187.0,0.001]
[1742434853408,0.25019282,86188.0,86187.0,0.001]
[1742434853950,0.197252,86184.0,86183.0,0.0001694]
[1742434855428,0.197252,86184.0,86183.0,0.0011694]
[1742434858458,0.25191908,86184.0,86183.0,0.0011694]
[1742434858662,0.25047208,86184.0,86183.0,0.0011694]
[1742434859643,0.32747208,86184.0,86183.0,0.0011694]
[1742434860289,0.33047208,86184.0,86183.0,0.0011694]
[1742434860912,1.05361243,86184.0,86183.0,0.0011694]
[1742434861108,1.05361243,86184.0,86183.0,4e-07]
[1742434861344,0.197302,86162.0,86161.0,0.13368]
[1742434861544,0.198749,86162.0,86161.0,0.13373828]
[1742434861951,0.197302,86162.0,86161.0,0.13373828]
[1742434862546,0.197302,86162.0,86161.0,0.13573828]
[1742434863492,0.197302,86162.0,86161.0,0.13590768]
[1742434863800,0.197302,86162.0,86161.0,0.13690768]
[1742434864407,0.197302,86162.0,86161.0,0.13490768]
[1742434865169,0.20807166,86162.0,86161.0,0.13490768]
[1742434865612,0.20807166,86162.0,86161.0,0.13390768]
[1742434865945,0.20907166,86162.0,86161.0,0.13390768]
[1742434866149,0.26377308,86162.0,86161.0,0.00022768]
[1742434866351,0.67237258,86162.0,86161.0,0.00022768]
[1742434866558,0.97237258,86162.0,86161.0,0.00022768]
[1742434866740,0.98691343,86162.0,86161.0,0.00022768]
[1742434867355,0.98591343,86162.0,86161.0,0.00022768]
[1742434867689,0.98891343,86162.0,86161.0,0.00022768]
[1742434868101,0.98891343,86162.0,86159.0,8e-08]
[1742434868102,0.99291343,86162.0,86159.0,8e-08]
[1742434868304,0.68871661,86160.0,86159.0,8e-08]
[1742434868509,1.09731611,86160.0,86159.0,8e-08]
[1742434869674,1.09731611,86160.0,86125.0,0.23662114]
[1742434869675,0.197384,86126.0,86125.0,0.23662114]
[1742434869819,0.197384,86126.0,86125.0,0.23674257]
[1742434871054,0.197384,86126.0,86125.0,0.10306257]
[1742434871256,0.197356,86139.0,86128.0,0.18577]
[1742434871452,0.197356,86139.0,86131.0,0.185763]
[1742434871453,0.011609,86135.0,86131.0,0.185763]
[1742434871631,0.011609,86135.0,86125.0,0.13384143]
[1742434871839,0.011609,86135.0,86126.0,0.128]
[1742434872062,0.197366,86134.0,86128.0,0.18577]
[1742434872270,0.011609,86135.0,86128.0,0.18577]
[1742434872671,0.185741,86142.0,86126.0,0.128]